{"text_format":"1","workbook":"xlsx","n_sheets":10,"sheets":["Ficha","SinMatriz","MIR","Listas","Base","MIR1","MIR2","MIR3","MIR4","MIR5"],"not_rendered":{"charts":0,"images":12,"macros":1,"external_links":0,"defined_names":69,"comments":1,"pivot_tables":0},"unopened":[],"bounds":{"document_bytes":16777216,"sheet_cells":100000,"rows_first":2000,"rows_last":500,"rows_between":2000,"halvings":0,"cell_chars":16384,"cell_head_chars":4096},"cells_cut":0,"cells_raw":0,"read":"whole","date_system":"1900"}

{"sheet":"Ficha","index":0,"n_rows":64,"n_cols":8,"rows_kept":64,"cut":false,"hidden":false,"merged":[]}
[]
[]
[]
[]
[null,null,null,"Información para la evaluación del desempeño"]
[]
[null,null,null,"Municipio:"]
[]
[]
[null,null,null,"Registre por favor los programas que fueron capturados en la pestaña MIR",null,null,null,"Registre por favor los programas que fueron capturados en la pestaña SinMatriz"]
[null,null,1,null,null,null,1]
[null,null,2,null,null,null,2]
[null,null,3,null,null,null,3]
[null,null,4,null,null,null,4]
[null,null,5,null,null,null,5]
[null,null,6,null,null,null,6]
[null,null,7,null,null,null,7]
[null,null,8,null,null,null,8]
[null,null,9,null,null,null,9]
[null,null,10,null,null,null,10]
[null,null,11,null,null,null,11]
[null,null,12,null,null,null,12]
[null,null,13,null,null,null,13]
[null,null,14,null,null,null,14]
[null,null,15,null,null,null,15]
[null,null,16,null,null,null,16]
[null,null,17,null,null,null,17]
[null,null,18,null,null,null,18]
[null,null,19,null,null,null,19]
[null,null,20,null,null,null,20]
[null,null,21,null,null,null,21]
[null,null,22,null,null,null,22]
[null,null,23,null,null,null,23]
[null,null,24,null,null,null,24]
[null,null,25,null,null,null,25]
[null,null,26,null,null,null,26]
[null,null,27,null,null,null,27]
[null,null,28,null,null,null,28]
[null,null,29,null,null,null,29]
[null,null,30,null,null,null,30]
[null,null,31,null,null,null,31]
[null,null,32,null,null,null,32]
[null,null,33,null,null,null,33]
[null,null,34,null,null,null,34]
[null,null,35,null,null,null,35]
[null,null,36,null,null,null,36]
[null,null,37,null,null,null,37]
[null,null,38,null,null,null,38]
[null,null,39,null,null,null,39]
[null,null,40,null,null,null,40]
[null,null,41,null,null,null,41]
[null,null,42,null,null,null,42]
[null,null,43,null,null,null,43]
[null,null,44,null,null,null,44]
[null,null,45,null,null,null,45]
[null,null,46,null,null,null,46]
[null,null,47,null,null,null,47]
[null,null,48,null,null,null,48]
[null,null,49,null,null,null,49]
[null,null,50,null,null,null,50]
[]
[null,null,null,"Número de programas con MIR (programas que fueron capturados en la pestaña MIR)",null,null,null,"Número de programas sin matriz (programas que fueron capturados en la pestaña SinMatriz)"]
[]
[null,null,null,"TOTAL",null,{"$f":"F62+J62","v":0}]

{"sheet":"SinMatriz","index":1,"n_rows":40,"n_cols":30,"rows_kept":40,"cut":false,"hidden":false,"merged":[[2,1,2,14]]}
[]
[]
["Nombre del municipio u OPD"]
[]
["No. ",null,"Denominación del programa","Objetivo","Nombre del indicador","Definición del indicador","Dimensión","Tipo de Indicador","Método de cálculo","Valor programado 1 (Numerador)","Valor programado 2 (Denominador)","Frecuencia de medición del indicador","Unidad de medida del indicador","Meta","Unidad responsable OPD","Alineación con objetivos superiores del PND","Alineación con objetivos secundarios del PND","Alineación con objetivos superiores del PED","Alineación con objetivos secundarios del PED","Alineación con objetivos superiores del PMD","Alineación con objetivos secundarios del PMD","Capítulo 1000","Capítulo 2000","Capítulo 3000","Capítulo 4000","Capítulo 5000","Capítulo 6000","Capítulo 7000","Capítulo 8000","Capítulo 9000"]
[1,{"$f":"$B$3","v":0}]
[2,{"$f":"$B$3","v":0}]
[3,0]
[4,0]
[5,0]
[6,0]
[7,0]
[8,0]
[9,0]
[10,0]
[11,0]
[12,0]
[13,0]
[14,0]
[15,0]
[16,0]
[17,0]
[18,0]
[19,0]
[20,0]
[21,0]
[22,0]
[23,0]
[24,0]
[25,0]
[26,0]
[27,0]
[28,0]
[29,0]
[30,0]
[31,0]
[32,0]
[33,0]
[34,0]
[35,0]

{"sheet":"MIR","index":2,"n_rows":23,"n_cols":26,"rows_kept":23,"cut":false,"hidden":false,"merged":[[13,1,14,1],[11,1,12,1],[9,1,10,1],[12,2,12,3],[14,2,14,3],[13,2,13,3],[9,2,9,3],[10,2,10,3],[11,2,11,3],[16,4,16,16],[16,17,16,25],[2,2,2,3],[7,2,7,3],[6,2,6,3],[5,2,5,3],[8,2,8,3],[4,2,4,3],[3,2,3,3]]}
[]
[null,null,null,null,null,null,null,null,null,null,null,"  MATRIZ DE INDICADORES PARA RESULTADOS POR PROGRAMA "]
[null,null,"Municipio",null,"Etzatlán"]
[null,null,"Denominación del Programa",null,"PROSPERA"]
[null,null,"Categoría programática",null,"Subsidios sujetos a reglas de operación"]
[null,null,"Unidad Responsable/OPD",null,"Secrtaria de desarrollo Social"]
[null,null,"Finalidad",null,"Desarrollo_Social"]
[null,null,"Función",null,"Protección_Social"]
[null,null,"Sub-función",null,"2.6.3 Familia e Hijos"]
[null,"Plan Nacional de Desarrollo","Alineación con objetivos superiores del PND",null,"México_Incluyente"]
[null,null,"Alineación con objetivos secundarios del PND",null,"2.5. Proveer un entorno adecuado para el desarrollo de una vida digna"]
[null,"Plan Estatal de Desarrollo","Alineación con objetivos superiores del PED",null,"O2_Impulsar_el_desarrollo_sostenible_de_las_regiones_del_estado"]
[null,null,"Alineación con objetivos secundarios del PED",null,"O2E6 Reducir la pobreza y la desigualdad"]
[null,"Plan Municipal de Desarrollo","Alineación con objetivos superiores del PMD",null,"Mejorar la atencion y gestion del programa para beneficiar a mas familias"]
[null,null,"Alineación con objetivos secundarios del PMD",null,"Erradicar la discriminacion la inclusion y marginacion social de la poblacion. "]
[]
[null,null,null,null,"I N D I C A D O R E S",null,null,null,null,null,null,null,null,null,null,null,null,"P R E S U P U E S T O"]
[null,null,null,null,"Resumen Narrativo","Nombre del indicador","Definición","Dimensión","Tipo","Método de cálculo","Valor programado 1 (Numerador)","Valor programado 2 (Denominador)","Frecuencia de medición","Unidad de medida","Metas","Medios de verificación","Supuestos","Capítulo 1000","Capítulo 2000","Capítulo 3000","Capítulo 4000","Capítulo 5000","Capítulo 6000","Capítulo 7000","Capítulo 8000","Capítulo 9000"]
[null,null,"Fin",null,"Obtener la inclusión social de la población en situación de pobreza extrema, promoviendo en las familias el fomento productivo, la generación de ingresos, bienestar económico, la inclusión financiera y laboral. De igual manera mejorar la educación, la alimentación y la salud.","poblacion en situacion de pobreza multidimencional ","se muestra el porcentaje y número de personas en situación de pobreza, vulnerable por carencias sociales, vulnerable por ingresos","Eficacia","Gestión","porcentaje las familias  no atendidas que viven en pobreza extrema",2000,2500,"Bimestral","porcentaje",1400,"Consejo Nacional de Evaluacion de la Politica de Desarrollo Social","senso de inegi 2010"]
[null,null,"Propósito",null,"Lograr una mejor calidad de vida para todos las familias que viven en pobreza extrema","promover incorporaciones  de familias ","Promover antes la dependencia gubernamental indicada para la atencion de incorporaciones de familias que necesitan y cumplen con el criterio del programa","Eficacia","Gestión"," porcentaje el numero de familias sin atender ",1000,2000,"Bimestral","porcentaje",1000,"Consejo Nacional de Evaluacion de la Politica de Desarrollo Social","senso de inegi 2010"]
[null,null,"Componente 1",null,"Atencion de familias beneficiarias ","calidad de atencion personalizada","Atencion de calidad y buen trato","Eficiencia","Gestión","cantidad de familias que se atienden",600,800,"Bimestral","numero",1200,"Consejo Nacional de Evaluacion de la Politica de Desarrollo Social","se entregan en tiempo su apoyo de manera bimestral",null,2000]
[null,null,"Actividad 1.1",null,"Mesa de atencion para las beneficiarias ","Atencion Personalizada ","Se atiende de forma personalizada referente a la informacion y tramites de su nucleo familiar ","Eficiencia","Gestión","la cantidad de atenciones y tramites que se realiza anulmente",6,6,"Bimestral","numero",6,"Consejo Nacional de Evaluacion de la Politica de Desarrollo Social","se atiende de manera bimestral "]
[null,null,"Actividad 1.2",null,"Capacitacion de vocales ","Reuniones de capacitaciones para las mac (mesa de atencion de Comites de Colonias y Localidades)","Se capacita a los comites sobre la informacion que corresponde al programa para que a su vez ellas puedan orientas a las demas beneficiarias","Eficiencia","Gestión","la cantidad de atenciones y tramites que se realiza anulmente",6,6,"Bimestral","numero",6,"Consejo Nacional de Evaluacion de la Politica de Desarrollo Social","se atiende de manera bimestral "]

{"sheet":"Listas","index":3,"n_rows":174,"n_cols":30,"rows_kept":174,"cut":false,"hidden":true,"merged":[]}
[]
[null,"Municipio","Denominación del Programa","Categoría programática","Unidad responsable","Fin","Función","Sub-función","Alineación con objetivos superiores del PND","Alineación con objetivos secundarios del PND","Alineación con objetivos superiores del PED","Alineación con objetivos secundarios del PED","Alineación con objetivos superior del PMD","Alineación con objetivos secundario del PMD","Nivel MIR","Resumen del nivel MIR","Resumen Narrativo (objetivos)","Cantidad de Gasto","Nombre","Definición","Dimensión","Tipo","Variables","Método de Cálculo","Frecuencia de Medición","Unidad de Medida","Valores Programados","Metas","Medios de Verificación","Supuestos"]
[null,"Acatic",null,"Subsidios sujetos a reglas de operación",null,"Gobierno","Legislación","1.1.1 Legislación","México_en_Paz","1.1. Promover y fortalecer la gobernabilidad democrática","O1_Incrementar_la_sostenibilidad_del_medio_ambiente_y_la_vulnerabilidad_del_cambio_climático","O1E1 Detener y revertir la degradación del medio ambiente",null,null,"Fin","F",null,null,null,null,"Eficacia","Estratégico",null,null,"Mensual"]
[null,"Acatlán de Juárez",null,"Otros subsidios",null,"Desarrollo_Social","Justicia","1.1.2 Fiscalización","México_Incluyente","1.2. Garantizar la seguridad nacional","O2_Impulsar_el_desarrollo_sostenible_de_las_regiones_del_estado","O1E2 Efectuar una ordenación y manejo sostenible de los bosques",null,null,"Propósito","P",null,null,null,null,"Eficiencia","Gestión",null,null,"Bimestral"]
[null,"Ahualulco de Mercado",null,"Prestación de servicios públicos",null,"Desarrollo_Económico","Coordinación_Política_de_Gobierno","1.2.1 Impartición de Justicia","México_con_Educación_de_Calidad","1.3. Mejorar las condiciones de seguridad pública","O3_Promover_un_desarrollo_urbano_sostenible_equitativo_y_ordenado","O1E3 Frenar la pérdida de diversidad biológica",null,null,"Componentes","C1",null,null,null,null,"Economía",null,null,null,"Trimestral"]
[null,"Amacueca",null,"Provisión de bienes públicos",null,"Otros","Relaciones_Exteriores","1.2.2 Procuración de Justicia","México_Próspero","1.4. Garantizar un sistema de Justicia Penal eficaz, expedito, imparcial y transparente","O4_Garantizar_el_suministro_del_agua_para_población_y_actividades_productivas","O1E4 Incrementar el manejo sustentable de los residuos",null,null,"Actividades","C2",null,null,null,null,"Calidad",null,null,null,"Semestral"]
[null,"Amatitán",null,"Planeación, Seguimiento y Evaluación de políticas Públicas",null,null,"Asuntos_Financieros_y_Hacendarios","1.2.3 Reclusión y Readaptación Social","México_Con_Responsabilidad_Global","1.5. Garantizar el respeto y protección de los derechos humanos y la erradicación de la discriminación","O5_Mejorar_la_calidad_seguridad_y_sostenibilidad_de_la_movilidad_urbana","O1E5 Incrementar la producción y uso de fuentes de energía limpias",null,null,null,"C3",null,null,null,null,null,null,null,null,"Anual"]
[null,"Ameca",null,"Promoción y fomento",null,null,"Asuntos_de_Orden_Público_y_Seguridad_Interior","1.2.4 Derechos Humanos",null,"1.6. Salvaguardar a la población, a sus bienes y a su entorno ante un desastre de origen natural o humano","O6_Disminuir_los_factores_de_riesgo_y_mejorar_la_atención_ante_desastres","O1E6 Mitigar las emisiones de gases de efecto invernadero",null,null,null,"C1A1",null,null,null,null,null,null,null,null,"Bianual"]
[null,"San Juanito de Escobedo",null,"Regulación y Supervisión",null,null,"Otros_Servicios_Generales","1.3.1 Presidencia / Gubernatura",null,"2.1. Garantizar el ejercicio efectivo de los derechos sociales para toda la población","O7_Incrementar_la_formalidad_del_empleo_la_seguridad_social_y_estabilidad_laboral","O1E7 Ordenar y proteger de manera sostenible los ecosistemas lacustres y costeros",null,null,null,"C1A2",null,null,null,null,null,null,null,null,"Bienal"]
[null,"Arandas",null,"Específicos",null,null,"Protección_Ambiental","1.3.2 Política Interior",null,"2.2. Transitar hacia una sociedad equitativa e incluyente","O8_Mejorar_la_competitividad_y_el_crecimiento_inclusivo_y_sostenible_de_los_sectores_económicos","O1E8 Reducir la contaminación de acuíferos y aguas superficiales",null,null,null,"C1A3",null,null,null,null,null,null,null,null,"Periodo"]
[null,"El Arenal",null,"Proyectos de Inversión",null,null,"Vivienda_y_Servicios_a_la_Comunidad","1.3.3 Preservación y Cuidado del Patrimonio Público",null,"2.3. Asegurar el acceso a los servicios de salud","O9_Incrementar_de_forma_sostenible_la_productividad_y_rentabilidad_de_las_actividades_del_sector_primario","O1E9 Reducir la vulnerabilidad y aumentar la resiliencia de la sociedad, las cuencas hidrológicas y los ecosistemas naturales, urbanos y agropecuarios frente a los efectos adversos del cambio climático",null,null,null,"C1A4"]
[null,"Atemajac de Brizuela",null,"Apoyo al Proceso Presupuestario y para Mejorar la Eficiencia Institucional",null,null,"Salud","1.3.4 Función Pública",null,"2.4. Ampliar el acceso a la seguridad social","O10_Incrementar_la_afluencia_y_la_derrama_económica_proveniente_del_turismo","O1E10 Revertir el deterioro de la calidad del aire",null,null,null,"C2A1"]
[null,"Atengo",null,"Apoyo a la Función Pública y al Mejoramiento de la Gestión",null,null,"Recreación_Cultura_y_Otras_Manifestaciones_Sociales","1.3.5 Asuntos Jurídicos",null,"2.5. Proveer un entorno adecuado para el desarrollo de una vida digna","O11_Mejorar_la_conectividad_de_Jalisco_sus_regiones_y_municipios","O2E1 Actualizar los ordenamientos ecológicos territoriales y su aplicación efectiva",null,null,null,"C2A2"]
[null,"Atenguillo",null,"Operaciones Ajenas",null,null,"Educación","1.3.6 Organización de Procesos Electorales",null,"3.1. Desarrollar el potencial humano de los mexicanos con educación de calidad","O12_Reducir_la_pobreza_y_la_desigualdad","O2E2 Desarrollar el potencial humano de las regiones con acceso a una educación de calidad",null,null,null,"C2A3"]
[null,"Atotonilco el Alto",null,"Obligaciones de Cumplimiento de Resolución Jurisdiccional",null,null,"Protección_Social","1.3.7 Población",null,"3.2. Garantizar la inclusión y la equidad en el Sistema Educativo","O13_Proteger_los_derechos_y_ampliar_las_oportunidades_de_desarrollo_de_los_grupos_prioritarios","O2E3 Generar oportunidades de empleos dignos aprovechando de forma sustentable las potencialidades regionales",null,null,null,"C2A4"]
[null,"Atoyac",null,"Desastres Naturales",null,null,"Otros_Asuntos_Sociales","1.3.8 Territorio",null,"3.3. Ampliar el acceso a la cultura como un medio para la formación integral\n de los ciudadanos","O14_Mejorar_la_salud_de_la_población","O2E4 Incrementar y mejorar la infraestructura productiva  y social",null,null,null,"C3A1"]
[null,"Autlán de Navarro",null,"Pensiones y Jubilaciones.",null,null,"Asuntos_Económicos_Comerciales_y_Laborales_Generales","1.3.9 Otros Asuntos de Orden Público y Seguridad Interior",null,"3.4. Promover el deporte de manera incluyente para fomentar una cultura\n de salud","O15_Aumentar_el_acceso_de_la_población_a_una_vivienda_digna","O2E5 Mejorar la capacidad de gestión de los funcionarios y autoridades municipales",null,null,null,"C3A2"]
[null,"Ayotlán",null,"Aportaciones a la Seguiridad Social",null,null,"Agropecuaria_Silvicultura_Pesca_y_Caza","1.4.1 Relaciones Exteriores",null,"3.5.Hacer del desarrollo científico, tecnológico y la innovación pilares para el progreso económico y social sostenible","O16_Incrementar_el_acceso_la_equidad_y_la_calidad_de_la_educación","O2E6 Reducir la pobreza y la desigualdad",null,null,null,"C3A3"]
[null,"Ayutla",null,null,null,null,"Combustibles_y_Energía","1.5.1 Asuntos Financieros",null,"4.1. Mantener la estabilidad macroeconómica del país","O17_Incrementar_el_desarrollo_tecnológico_la_investigación_científica_y_la_innovación","O3E1 Conservar los suelos, incrementar las áreas verdes y las reservas territoriales",null,null,null,"C4A4"]
[null,"La Barca",null,null,null,null,"Minería_Manufacturas_y_Construcción","1.5.2 Asuntos Hacendarios",null,"4.2. Democratizar el acceso al financiamiento de proyectos con potencial de crecimiento","O18_Garantizar_el_acceso_de_toda_la_población_a_la_cultura_y_las_diferentes_expresiones_artísticas","O3E2 Impulsar un desarrollo urbano orientado al transporte sustentable"]
[null,"Bolaños",null,null,null,null,"Transporte","1.7.1 Policía",null,"4.3. Promover el empleo de calidad","O19_Aumentar_la_práctica_del_deporte_y_actividades_físicas_de_la_población","O3E3 Incrementar y mejorar los servicios y espacios públicos"]
[null,"Cabo Corrientes",null,null,null,null,"Comunicaciones","1.7.2 Protección Civil",null,"4.4. Impulsar y orientar un crecimiento verde incluyente y facilitador que preserve nuestro atrimonio natural al mismo tiempo que genere riqueza, competitividad y empleo","O20_Reducir_la_incidencia_delictiva_y_mejorar_la_percepción_de_seguridad","O3E4 Mejorar la conectividad y articulación de las principales ciudades con una perspectiva regional e interestatal"]
[null,"Casimiro Castillo",null,null,null,null,"Turismo","1.7.3 Otros Asuntos de Orden Público y Seguridad",null,"4.5. Democratizar el acceso a servicios de telecomunicaciones","O21_Mejorar_la_impartición_de_justicia_con_un_sistema_eficaz_expedito_imparcial_y_transparente","O3E5 Ordenar el crecimiento de las áreas urbanas y asegurar el cumplimiento de la normatividad inherente"]
[null,"Cihuatlán",null,null,null,null,"Ciencia_Tecnología_e_Innovación","1.7.4 Sistema Nacional de Seguridad Pública",null,"4.6. Abastecer de energía al país con precios competitivos, calidad y eficiencia a lo largo de la cadena productiva","O22_Reducir_la_impunidad_mejorando_la_imparcialidad_transparencia_y_eficiencia_en_la_procuración_de_justicia","O3E6 Promover un crecimiento urbano equitativo mediante la oferta de suelo accesible y de calidad a los sectores de menores ingresos"]
[null,"Zapotlán el Grande",null,null,null,null,"Otras_Industrias_y_Otros_Asuntos_Económicos","1.8.1 Servicios Registrales, Administrativos y Patrimoniales",null,"4.7. Garantizar reglas claras que incentiven el desarrollo de un mercado interno competitivo","O23_Garantizar_el_respeto_y_la_protección_de_los_derechos_humanos_y_eliminar_la_discriminación","O3E7 Reducir la contaminación del agua y aire, así como la visual y auditiva"]
[null,"Cocula",null,null,null,null,"Transacciones_de_la_Deuda_Financiera_y_Costo_Financiero_Deuda","1.8.2 Servicios Estadísticos",null,"4.8. Desarrollar los sectores estratégicos del país","O24_Mejorar_la_estabilidad_y_funcionalidad_del_sistema_democrático","O3E8 Reducir la fragmentación territorial y política en las áreas metropolitanas mediante la aplicación de un modelo de gobernanza metropolitana"]
[null,"Colotlán",null,null,null,null,"Transferencias_Participaciones_y_Aportaciones","1.8.3 Servicios de Comunicación y Medios",null,"4.9. Contar con una infraestructura de transporte que se refleje en menores costos para realizar la actividad económica","O25_Mejorar_la_efectividad_de_las_instituciones_públicas_y_gubernamentales","O4E1 Fortalecer el desarrollo y la capacidad técnica y financiera de los organismos operadores del agua"]
[null,"Concepción de Buenos Aires",null,null,null,null,"Saneamiento_del_Sistema_Financiero","1.8.4 Acceso a la Información Pública Gubernamental",null,"4.10. Construir un sector agropecuario y pesquero productivo que garantice la seguridad alimentaria del país","O26_Mejorar_la_igualdad_entre_los_géneros_y_empoderar_a_las_mujeres","O4E2 Incrementar los niveles de tratamiento de aguas residuales y su reutilización"]
[null,"Cuautitlán de García Barragán",null,null,null,null,"Adeudos_Anteriores","1.8.5 Otros",null,"4.11. Aprovechar el potencial turístico de México para generar una mayor derrama económica en el país","O27_Incrementar_la_capacidad_innovadora_en_los_sectores_social_privado_y_público","O4E3 Incrementar y diversificar las fuentes de abastecimiento y captación de agua"]
[null,"Cuautla",null,null,null,null,null,"2.1.1 Ordenación de Desechos",null,"5.1. Ampliar y fortalecer la presencia de México en el mundo",null,"O4E4 Mejorar la potabilización de las aguas para el consumo humano"]
[null,"Cuquío",null,null,null,null,null,"2.1.2 Administración del Agua",null,"5.2. Promover el valor de México en el mundo mediante la difusión económica, turística y cultural",null,"O4E5 Modernizar y ampliar la infraestructura hidroagrícola"]
[null,"Chapala",null,null,null,null,null,"2.1.3 Ordenación de Aguas Residuales, Drenaje y Alcantarillado",null,"5.3. Reafirmar el compromiso del país con el libre comercio, la movilidad de capitales y la integración productiva",null,"O4E6 Ordenar el uso y aprovechamiento del agua en cuencas y acuíferos"]
[null,"Chimaltitán",null,null,null,null,null,"2.1.4 Reducción de la Contaminación",null,"5.4. Velar por los intereses de los mexicanos en el extranjero y proteger los derechos de los extranjeros en el territorio nacional",null,"O4E7 Proteger y recuperar los bosques, humedales y ríos"]
[null,"Chiquilistlán",null,null,null,null,null,"2.1.5 Protección de la Diversidad Biológica y del Paisaje",null,null,null,"O4E8 Reducir el desperdicio del agua y racionalizar su uso"]
[null,"Degollado",null,null,null,null,null,"2.1.6 Otros de Protección Ambiental",null,null,null,"O5E1 Ampliar y articular la red de transporte público masivo incentivando la multimodalidad"]
[null,"Ejutla",null,null,null,null,null,"2.2.1 Urbanización",null,null,null,"O5E2 Incrementar el uso de medios alternativos de traslado, desincentivando el uso del automóvil"]
[null,"Encarnación de Díaz",null,null,null,null,null,"2.2.2 Desarrollo Comunitario",null,null,null,"O5E3 Mejorar la infraestructura y equipamiento para la movilidad motorizada y no motorizada"]
[null,"Etzatlán",null,null,null,null,null,"2.2.3 Abastecimiento de Agua",null,null,null,"O5E4 Mejorar la seguridad y la cultura vial"]
[null,"El Grullo",null,null,null,null,null,"2.2.4 Alumbrado Público",null,null,null,"O5E5 Modernizar los sistemas de transporte público en las ciudades"]
[null,"Guachinango",null,null,null,null,null,"2.2.5 Vivienda",null,null,null,"O6E1 Incrementar la capacitación y profesionalización del personal de protección civil"]
[null,"Guadalajara",null,null,null,null,null,"2.2.6 Servicios Comunales",null,null,null,"O6E2 Incrementar la cultura de protección civil en la sociedad, el gobierno y la empresa"]
[null,"Hostotipaquillo",null,null,null,null,null,"2.2.7 Desarrollo Regional",null,null,null,"O6E3 Mejorar los procedimientos para disminuir los riesgos y la atención de emergencias"]
[null,"Huejúcar",null,null,null,null,null,"2.3.1 Prestación de Servicios de Salud a la Comunidad",null,null,null,"O6E4 Mejorar los sistemas de información de los riesgos a los que está expuesta la población y su entorno"]
[null,"Huejuquilla el Alto",null,null,null,null,null,"2.3.2 Prestación de Servicios de Salud a la Persona",null,null,null,"O6E5 Mejorar y establecer sistemas de alerta temprana multirriesgos"]
[null,"La Huerta",null,null,null,null,null,"2.3.3 Generación de Recursos para la Salud",null,null,null,"O7E1 Aumentar la disponibilidad de capital humano mejor calificado adecuado a la demanda del mercado laboral"]
[null,"Ixtlahuacán de los Membrillos",null,null,null,null,null,"2.3.4 Rectoría del Sistema de Salud",null,null,null,"O7E2 Erradicar el trabajo infantil"]
[null,"Ixtlahuacán del Río",null,null,null,null,null,"2.3.5 Protección Social en Salud",null,null,null,"O7E3 Incrementar la certificación de competencias laborales y profesionales"]
[null,"Jalostotitlán",null,null,null,null,null,"2.4.1 Deporte y Recreación",null,null,null,"O7E4 Incrementar la cultura empresarial de la responsabilidad social"]
[null,"Jamay",null,null,null,null,null,"2.4.2 Cultura",null,null,null,"O7E5 Incrementar la productividad con beneficios compartidos, la empleabilidad y la capacitación en el trabajo"]
[null,"Jesús María",null,null,null,null,null,"2.4.3 Radio, Televisión y Editoriales",null,null,null,"O7E6 Mejorar la protección de los derechos del trabajador"]
[null,"Jilotlán de los Dolores",null,null,null,null,null,"2.4.4 Asuntos Religiosos y Otras Manifestaciones Sociales",null,null,null,"O7E7 Mejorar la remuneración y las condiciones laborales de la población ocupada"]
[null,"Jocotepec",null,null,null,null,null,"2.5.1 Educación Básica",null,null,null,"O7E8 Propiciar el equilibrio entre empleadores y trabajadores para preservar la paz laboral"]
[null,"Juanacatlán",null,null,null,null,null,"2.5.2 Educación Media Superior",null,null,null,"O8E1 Aumentar las exportaciones de las unidades productivas"]
[null,"Juchitlán",null,null,null,null,null,"2.5.3 Educación Superior",null,null,null,"O8E2 Aumentar los niveles de innovación tecnológica, empresarial y social"]
[null,"Lagos de Moreno",null,null,null,null,null,"2.5.4 Posgrado",null,null,null,"O8E3 Estimular el espíritu empresarial y el desarrollo de emprendedores"]
[null,"El Limón",null,null,null,null,null,"2.5.5 Educación para Adultos",null,null,null,"O8E4 Facilitar el acceso al financiamiento y la asistencia técnica, especialmente a la micro y pequeña empresa"]
[null,"Magdalena",null,null,null,null,null,"2.5.6 Otros Servicios Educativos y Actividades Inherentes",null,null,null,"O8E5 Incrementar el desarrollo y la integración de las cadenas productivas, de proveeduría y los clústeres"]
[null,"Santa María del Oro",null,null,null,null,null,"2.6.1 Enfermedad e Incapacidad",null,null,null,"O8E6 Incrementar la inversión extranjera directa"]
[null,"La Manzanilla de la Paz",null,null,null,null,null,"2.6.2 Edad Avanzada",null,null,null,"O8E7 Mejorar e incrementar la infraestructura productiva"]
[null,"Mascota",null,null,null,null,null,"2.6.3 Familia e Hijos",null,null,null,"O8E8 Mejorar la calidad y la productividad de las unidades económicas"]
[null,"Mazamitla",null,null,null,null,null,"2.6.4 Desempleo",null,null,null,"O8E9 Simplificar los trámites y agilizar los procesos de apertura de empresas"]
[null,"Mexticacán",null,null,null,null,null,"2.6.5 Alimentación y Nutrición",null,null,null,"O9E1 Ampliar y modernizar la infraestructura rural productiva"]
[null,"Mezquitic",null,null,null,null,null,"2.6.6 Apoyo Social para la Vivienda",null,null,null,"O9E2 Aumentar la comercialización de los productos del sector primario dentro y fuera del país"]
[null,"Mixtlán",null,null,null,null,null,"2.6.7 Indígenas",null,null,null,"O9E3 Aumentar la industrialización y el valor agregado a la producción del sector primario"]
[null,"Ocotlán",null,null,null,null,null,"2.6.8 Otros Grupos Vulnerables",null,null,null,"O9E4 Incrementar el financiamiento, la capacitación y asistencia técnica a los productores rurales"]
[null,"Ojuelos de Jalisco",null,null,null,null,null,"2.6.9 Otros de Seguridad Social y Asistencia Social",null,null,null,"O9E5 Incrementar la producción sustentable y comercialización de la madera y sus derivados"]
[null,"Pihuamo",null,null,null,null,null,"2.7.1 Otros Asuntos Sociales",null,null,null,"O9E6 Mejorar la sanidad e inocuidad de los productos agropecuarios"]
[null,"Poncitlán",null,null,null,null,null,"3.1.1 Asuntos Económicos y Comerciales en General",null,null,null,"O10E1 Aumentar la atracción y captación de inversión en el sector"]
[null,"Puerto Vallarta",null,null,null,null,null,"3.1.2 Asuntos Laborales Generales",null,null,null,"O10E2 Incrementar la promoción integral de destinos y rutas turísticas"]
[null,"Villa Purificación",null,null,null,null,null,"3.2.1 Agropecuaria",null,null,null,"O10E3 Innovar y diversificar la oferta turística por región y destino de forma sostenible"]
[null,"Quitupan",null,null,null,null,null,"3.2.2 Silvicultura",null,null,null,"O10E4 Mejorar el entorno, la infraestructura y equipamiento en centros turísticos"]
[null,"El Salto",null,null,null,null,null,"3.2.3 Acuacultura, Pesca y Caza",null,null,null,"O10E5 Mejorar las capacidades turísticas locales y promover el emprendurismo en el sector"]
[null,"San Cristóbal de la Barranca",null,null,null,null,null,"3.2.4 Agroindustrial",null,null,null,"O11E1 Ampliar y modernizar la red de ferrocarriles"]
[null,"San Diego de Alejandría",null,null,null,null,null,"3.2.5 Hidroagrícola",null,null,null,"O11E2 Incrementar la accesibilidad a las telecomunicaciones"]
[null,"San Juan de los Lagos",null,null,null,null,null,"3.2.6 Apoyo Financiero a la Banca y Seguro Agropecuario",null,null,null,"O11E3 Incrementar y modernizar la red de carreteras"]
[null,"San Julián",null,null,null,null,null,"3.3.1 Carbón y Otros Combustibles Minerales Sólidos",null,null,null,"O11E4 Modernizar y ampliar la infraestructura aérea y la marítima"]
[null,"San Marcos",null,null,null,null,null,"3.3.2 Petróleo y Gas Natural (Hidrocarburos)",null,null,null,"O11E5 Propiciar la ampliación de servicios logísticos estratégicos para el desarrollo social y económico"]
[null,"San Martín de Bolaños",null,null,null,null,null,"3.3.3 Combustibles Nucleares",null,null,null,"O12E1 Ampliar las capacidades productivas de la población en condiciones de vulnerabilidad"]
[null,"San Martín Hidalgo",null,null,null,null,null,"3.3.4 Otros Combustibles",null,null,null,"O12E2 Incrementar la disponibilidad y el acceso a una adecuada alimentación de la población en condiciones de pobreza"]
[null,"San Miguel el Alto",null,null,null,null,null,"3.3.5 Electricidad",null,null,null,"O12E3 Mejorar el pago de impuestos y servicios públicos acorde con el nivel de vida e ingresos de la población"]
[null,"Gómez Farías",null,null,null,null,null,"3.3.6 Energía no Eléctrica",null,null,null,"O12E4 Mejorar la calidad y espacios en las viviendas de la población en situación de pobreza"]
[null,"San Sebastián del Oeste",null,null,null,null,null,"3.4.1 Extracción de Recursos Minerales excepto los Combustibles Minerales",null,null,null,"O12E5 Promover la cohesión social desde los espacios de deliberación pública, fortaleciendo las organizaciones sociales y la participación comunitaria"]
[null,"Santa María de los Ángeles",null,null,null,null,null,"3.4.2 Manufacturas",null,null,null,"O12E6 Reducir el rezago educativo"]
[null,"Sayula",null,null,null,null,null,"3.4.3 Construcción",null,null,null,"O13E1 Ampliar las capacidades productivas de los grupos prioritarios"]
[null,"Tala",null,null,null,null,null,"3.5.1 Transporte por Carretera",null,null,null,"O13E2 Brindar atención y acompañamiento a la población migrante"]
[null,"Talpa de Allende",null,null,null,null,null,"3.5.2 Transporte por Agua y Puertos",null,null,null,"O13E3 Garantizar la accesibilidad y la inclusión de las personas con discapacidad; y reducir el riego de adquirirla"]
[null,"Tamazula de Gordiano",null,null,null,null,null,"3.5.3 Transporte por Ferrocarril",null,null,null,"O13E4 Garantizar los derechos de los adultos mayores, incrementar su autonomía y promover el envejecimiento activo"]
[null,"Tapalpa",null,null,null,null,null,"3.5.4 Transporte Aéreo",null,null,null,"O13E5 Garantizar y restituir los derechos de las niñas, niños y adolescentes"]
[null,"Tecalitlán",null,null,null,null,null,"3.5.5 Transporte por Oleoductos y Gasoductos y Otros Sistemas de Transporte",null,null,null,"O13E6 Incrementar el ingreso, permanencia y conclusión de la formación educativa de estudiantes indígenas"]
[null,"Tecolotlán",null,null,null,null,null,"3.5.6 Otros Relacionados con Transporte",null,null,null,"O13E7 Mejorar la dotación de servicios públicos en las localidades con población indígena"]
[null,"Techaluta de Montenegro",null,null,null,null,null,"3.6.1 Comunicaciones",null,null,null,"O13E8 Reducir la violencia intrafamiliar y comunitaria"]
[null,"Tenamaxtlán",null,null,null,null,null,"3.7.1 Turismo",null,null,null,"O13E9 Reducir los principales riesgos sociales y de salud a los que está expuesta la población joven (alcoholismo y drogadicción, embarazos adolescente, abandono escolar)"]
[null,"Teocaltiche",null,null,null,null,null,"3.7.2 Hoteles y Restaurantes",null,null,null,"O14E1 Impulsar la integración y universalidad de los servicios de salud"]
[null,"Teocuitatlán de Corona",null,null,null,null,null,"3.8.1 Investigación Científica",null,null,null,"O14E2 Incrementar el acceso efectivo a los servicios de salud, en especial la población en condiciones de vulnerabilidad y pobreza"]
[null,"Tepatitlán de Morelos",null,null,null,null,null,"3.8.2 Desarrollo Tecnológico",null,null,null,"O14E3 Mejorar la calidad en la prestación de los servicios de salud"]
[null,"Tequila",null,null,null,null,null,"3.8.3 Servicios Científicos y Tecnológicos",null,null,null,"O14E4 Reducir el sobrepeso y la obesidad de la población"]
[null,"Teuchitlán",null,null,null,null,null,"3.8.4 Innovación",null,null,null,"O14E5 Reducir y controlar los factores de riesgo para la salud con enfoque preventivo a la comunidad"]
[null,"Tizapán el Alto",null,null,null,null,null,"3.9.1 Comercio, Distribución, Almacenamiento y Depósito",null,null,null,"O15E1 Facilitar el acceso al financiamiento para adquirir una vivienda propia a la población más vulnerable"]
[null,"Tlajomulco de Zúñiga",null,null,null,null,null,"3.9.2 Otras Industrias",null,null,null,"O15E2 Garantizar la aplicación de los instrumentos de planeación urbana en la construcción de fraccionamientos y para evitar asentamiento irregulares"]
[null,"Tlaquepaque",null,null,null,null,null,"3.9.3 Otros Asuntos Económicos",null,null,null,"O15E3 Garantizar reservas territoriales suficientes para la construcción de viviendas"]
[null,"Tolimán",null,null,null,null,null,"4.1.1 Deuda Pública Interna",null,null,null,"O15E4 Incrementar la efectividad de los programas sociales dirigidos a la adquisición, autoconstrucción y mejora de la vivienda"]
[null,"Tomatlán",null,null,null,null,null,"4.1.2 Deuda Pública Externa",null,null,null,"O15E5 Mejorar el entorno y servicios en las viviendas en zonas urbanas y rurales marginadas"]
[null,"Tonalá",null,null,null,null,null,"4.2.1 Transferencias entre Diferentes Niveles y Ordenes de Gobierno",null,null,null,"O15E6 Mejorar los procesos de certificación de la propiedad de la vivienda en asentamientos irregulares"]
[null,"Tonaya",null,null,null,null,null,"4.2.2 Participaciones entre Diferentes Niveles y Ordenes de Gobierno",null,null,null,"O16E1 Ampliar la oferta, la calidad y el acceso para realizar estudios de posgrado y de educación continua"]
[null,"Tonila",null,null,null,null,null,"4.2.3 Aportaciones entre Diferentes Niveles y Ordenes de Gobierno",null,null,null,"O16E2 Ampliar las oportunidades educativas, en especial la población en condiciones de vulnerabilidad y pobreza"]
[null,"Totatiche",null,null,null,null,null,"4.3.1 Saneamiento del Sistema Financiero",null,null,null,"O16E3 Ampliar y mejorar la enseñanza de la ciencia y la tecnología en la educación básica"]
[null,"Tototlán",null,null,null,null,null,"4.3.2 Apoyos IPAB",null,null,null,"O16E4 Diversificar la oferta de programas de educación superior y sus modalidades"]
[null,"Tuxcacuesco",null,null,null,null,null,"4.3.3 Banca de Desarrollo",null,null,null,"O16E5 Incrementar en la educación superior la movilidad de estudiantes y académicos a nivel estatal, nacional e internacional"]
[null,"Tuxcueca",null,null,null,null,null,"4.3.4 Apoyo a los programas de reestructura en unidades de inversión (UDIS)",null,null,null,"O16E6 Incrementar espacios educativos comunes que permitan la conjunción de esfuerzos de instituciones para mejorar la calidad y consolidar el clúster de la educación superior en el estado"]
[null,"Tuxpan",null,null,null,null,null,"4.4.1 Adeudos de Ejercicios Fiscales Anteriores",null,null,null,"O16E7 Incrementar la cobertura de la educación media superior y superior"]
[null,"Unión de San Antonio",null,null,null,null,null,null,null,null,null,"O16E8 Mejorar el aprendizaje de un segundo idioma por parte de los estudiantes en todos los niveles educativos, particularmente el básico"]
[null,"Unión de Tula",null,null,null,null,null,null,null,null,null,"O16E9 Mejorar la capacitación y actualización de docente y directivos del sistema educativo"]
[null,"Valle de Guadalupe",null,null,null,null,null,null,null,null,null,"O16E10 Reducir el rezago educativo"]
[null,"Valle de Juárez",null,null,null,null,null,null,null,null,null,"O16E11 Reducir la violencia en los planteles educativos"]
[null,"San Gabriel",null,null,null,null,null,null,null,null,null,"O17E1 Ampliar y mejorar los instrumentos de transferencia y difusión tecnológica"]
[null,"Villa Corona",null,null,null,null,null,null,null,null,null,"O17E2 Aumentar las fuentes de financiamiento para actividades de ciencia y tecnología"]
[null,"Villa Guerrero",null,null,null,null,null,null,null,null,null,"O17E3 Aumentar las instituciones y empresas que realizan actividades de investigación y desarrollo tecnológico"]
[null,"Villa Hidalgo",null,null,null,null,null,null,null,null,null,"O17E4 Incrementar el desarrollo de proyectos científicos tecnológicos entre los sectores académicos y las empresas"]
[null,"Cañadas de Obregón",null,null,null,null,null,null,null,null,null,"O17E5 Incrementar la I+D en las empresas que exportan productos de alta tecnología"]
[null,"Yahualica de González Gallo",null,null,null,null,null,null,null,null,null,"O17E6 Incrementar la investigación y el desarrollo tecnológico en las instituciones educativas"]
[null,"Zacoalco de Torres",null,null,null,null,null,null,null,null,null,"O17E7 Mejorar y ampliar la formación de recursos humanos calificados en el campo de la investigación y desarrollo"]
[null,"Zapopan",null,null,null,null,null,null,null,null,null,"O18E1 Diversificar y ampliar las alternativas de recreación cultural en regiones y municipios"]
[null,"Zapotiltic",null,null,null,null,null,null,null,null,null,"O18E2 Garantizar la disponibilidad, seguridad y conservación de los espacios y sitios culturales"]
[null,"Zapotitlán de Vadillo",null,null,null,null,null,null,null,null,null,"O18E3 Incrementar la disponibilidad de recursos humanos en el ámbito artístico"]
[null,"Zapotlán del Rey",null,null,null,null,null,null,null,null,null,"O18E4 Incrementar las capacidades creativas y de producción artística de la población"]
[null,"Zapotlanejo",null,null,null,null,null,null,null,null,null,"O18E5 Mejorar las condiciones materiales, humanas e institucionales vinculadas a la cultura"]
[null,"San Ignacio Cerro Gordo",null,null,null,null,null,null,null,null,null,"O19E1 Acrecentar la capacitación y formación de instructores y entrenadores en actividades físicas y deportivas"]
[null,null,null,null,null,null,null,null,null,null,null,"O19E2 Incrementar la práctica de actividades físicas y deportivas en todos los niveles educativos, y la población en general"]
[null,null,null,null,null,null,null,null,null,null,null,"O19E3 Incrementar y mejorar los espacios para la práctica de actividades físicas y deportivas"]
[null,null,null,null,null,null,null,null,null,null,null,"O19E4 Mejorar y ampliar el sistema estatal del deporte de alto rendimiento"]
[null,null,null,null,null,null,null,null,null,null,null,"O19E5 Promover la práctica del deporte competitivo en el ámbito local, regional y estatal"]
[null,null,null,null,null,null,null,null,null,null,null,"O20E1 Fortalecer las capacidades y equipamiento de los cuerpos de seguridad pública"]
[null,null,null,null,null,null,null,null,null,null,null,"O20E2 Garantizar la honestidad, confianza y el profesionalismo del personal que labora en las instituciones de seguridad pública y privada a través de un sistema adecuado de evaluación"]
[null,null,null,null,null,null,null,null,null,null,null,"O20E3 Incrementar el acceso de la población a las actividades culturales, deportivas y recreativas"]
[null,null,null,null,null,null,null,null,null,null,null,"O20E4 Incrementar el nivel de denuncia ciudadana y su correcta atención"]
[null,null,null,null,null,null,null,null,null,null,null,"O20E5 Incrementar la participación ciudadana en la prevención del delito"]
[null,null,null,null,null,null,null,null,null,null,null,"O20E6 Intensificar y mejorar la comunicación en materia de prevención del delito y combate a la inseguridad"]
[null,null,null,null,null,null,null,null,null,null,null,"O21E1 Concluir y consolidar el nuevo sistema penal acusatorio"]
[null,null,null,null,null,null,null,null,null,null,null,"O21E2 Disminuir la incidencia de los actos de corrupción"]
[null,null,null,null,null,null,null,null,null,null,null,"O21E3 Facilitar el acceso de la justicia a nivel local y regional"]
[null,null,null,null,null,null,null,null,null,null,null,"O21E4 Incrementar el uso de métodos alternativos de solución de conflictos"]
[null,null,null,null,null,null,null,null,null,null,null,"O21E5 Mejorar el sistema penal con el propósito de reducir la sobrepoblación penitenciaria"]
[null,null,null,null,null,null,null,null,null,null,null,"O21E6 Mejorar la capacitación y formación de los recursos humanos del poder judicial"]
[null,null,null,null,null,null,null,null,null,null,null,"O21E7 Proporcionar asistencia y representación eficaz a las víctimas con perspectiva de derechos humanos"]
[null,null,null,null,null,null,null,null,null,null,null,"O22E1 Aumentar la probabilidad de captura y condena por delitos cometidos"]
[null,null,null,null,null,null,null,null,null,null,null,"O22E2 Disminuir la incidencia de los actos de corrupción"]
[null,null,null,null,null,null,null,null,null,null,null,"O22E3 Investigar y perseguir el delito con mayor eficacia"]
[null,null,null,null,null,null,null,null,null,null,null,"O22E4 Mejorar la calidad de los servicios que prestan los ministerios públicos"]
[null,null,null,null,null,null,null,null,null,null,null,"O22E5 Mejorar la capacitación y formación de los recursos humanos para la procuración de justicia"]
[null,null,null,null,null,null,null,null,null,null,null,"O22E6 Mejorar la percepción ciudadana sobre el quehacer del sistema de procuración de justicia"]
[null,null,null,null,null,null,null,null,null,null,null,"O23E1 Disminuir la incidencia de las violaciones a los Derechos Humanos"]
[null,null,null,null,null,null,null,null,null,null,null,"O23E2 Mejorar la atención a las víctimas de violaciones a los derechos humanos"]
[null,null,null,null,null,null,null,null,null,null,null,"O23E3 Reducir la violencia y discriminación, particularmente aquella ejercida en contra de grupos en situación de vulnerabilidad"]
[null,null,null,null,null,null,null,null,null,null,null,"O24E1 Contribuir al desarrollo democrático social y político"]
[null,null,null,null,null,null,null,null,null,null,null,"O24E2 Incrementar la participación ciudadana en asuntos públicos y en organizaciones civiles y comunitarias"]
[null,null,null,null,null,null,null,null,null,null,null,"O24E3 Mejorar la coordinación de los tres órdenes y niveles de gobierno"]
[null,null,null,null,null,null,null,null,null,null,null,"O24E4 Prevenir y gestionar conflictos sociales a través del diálogo constructivo"]
[null,null,null,null,null,null,null,null,null,null,null,"O25E1 Disminuir la incidencia de los actos de corrupción"]
[null,null,null,null,null,null,null,null,null,null,null,"O25E2 Impulsar un gobierno abierto, promotor de la transparencia, la rendición de cuentas, la participación ciudadana y del uso de las tecnologías de información y comunicación"]
[null,null,null,null,null,null,null,null,null,null,null,"O25E3 Incrementar la disponibilidad de recursos financieros y mejorar su uso y asignación"]
[null,null,null,null,null,null,null,null,null,null,null,"O25E4 Mejorar la calidad y disponibilidad de información para la toma de decisiones de la sociedad y el gobierno"]
[null,null,null,null,null,null,null,null,null,null,null,"O25E5 Mejorar la calidad y la prestación de servicios públicos"]
[null,null,null,null,null,null,null,null,null,null,null,"O25E6 Mejorar la capacitación y profesionalización de los funcionarios y servidores públicos"]
[null,null,null,null,null,null,null,null,null,null,null,"O25E7 Mejorar la planeación, programación, el seguimiento y la evaluación para una gestión pública eficiente orientada a resultados"]
[null,null,null,null,null,null,null,null,null,null,null,"O26E1 Asegurar el acceso igualitario a la justicia"]
[null,null,null,null,null,null,null,null,null,null,null,"O26E2 Garantizar el acceso universal a la salud reproductiva y sexual"]
[null,null,null,null,null,null,null,null,null,null,null,"O26E3 Incrementar el acceso a la educación de niñas y mujeres"]
[null,null,null,null,null,null,null,null,null,null,null,"O26E4 Incrementar la participación de las mujeres en cargos públicos y en puestos de elección popular"]
[null,null,null,null,null,null,null,null,null,null,null,"O26E5 Incrementar las oportunidades laborales dignas para las mujeres, en particular las mujeres jefas de familia"]
[null,null,null,null,null,null,null,null,null,null,null,"O26E6 Reducir la violencia contra las mujeres"]
[null,null,null,null,null,null,null,null,null,null,null,"O27E1 Crear espacios físicos y virtuales, y otros mecanismos de diálogo y reflexión para generar soluciones innovadoras a problemas públicos y sociales"]
[null,null,null,null,null,null,null,null,null,null,null,"O27E2 Desarrollar alianzas y redes entre empresas, gobierno, grupos sociales y universidades para impulsar la innovación, el emprendurismo y la creatividad que genere la creación de valor público y económico"]
[null,null,null,null,null,null,null,null,null,null,null,"O27E3 Incrementar las actividades de investigación y desarrollo, principalmente en el sector agropecuario, la industria alimentaria, la industria creativa y la biotecnológica"]
[null,null,null,null,null,null,null,null,null,null,null,"O27E4 Promover la innovación en el sector gubernamental en todos los órdenes y niveles de gobierno"]

{"sheet":"Base","index":4,"n_rows":6,"n_cols":39,"rows_kept":6,"cut":false,"hidden":true,"merged":[]}
["ID","Ente auditable","Denominación del Programa","Categoría programática","Unidad Responsable","Finalidad","Función","Sub-función","Alineación con objetivos superiores del PND","Alineación con objetivos secundarios del PND","Alineación con objetivos superiores del PED","Alineación con objetivos secundarios del PED","Alineación con objetivos superiores del PMD","Alineación con objetivos secundarios del PMD","Nivel MIR","Código del nivel MIR","Resumen Narrativo (objetivos)","Nombre del indicador","Definición del indicador","Dimensión del indicador","Tipo de indicador","Método de Cálculo del indicador","Valor programado 1 (Numerador)","Valor programado 2 (Denominador)","Frecuencia de Medición del indicador","Unidad de Medida del indicador","Metas del indicador","Medios de Verificación del indicador","Supuestos del indicador","Capítulo 1000","Capítulo 2000","Capítulo 3000","Capítulo 4000","Capítulo 5000","Capítulo 6000","Capítulo 7000","Capítulo 8000","Capítulo 9000","Avance"]
[null,"Etzatlán","PROSPERA","Subsidios sujetos a reglas de operación","Secrtaria de desarrollo Social","Desarrollo_Social","Protección_Social","2.6.3 Familia e Hijos","México_Incluyente","2.5. Proveer un entorno adecuado para el desarrollo de una vida digna","O2_Impulsar_el_desarrollo_sostenible_de_las_regiones_del_estado","O2E6 Reducir la pobreza y la desigualdad","Mejorar la atencion y gestion del programa para beneficiar a mas familias","Erradicar la discriminacion la inclusion y marginacion social de la poblacion. ","Fin",null,"Obtener la inclusión social de la población en situación de pobreza extrema, promoviendo en las familias el fomento productivo, la generación de ingresos, bienestar económico, la inclusión financiera y laboral. De igual manera mejorar la educación, la alimentación y la salud.","poblacion en situacion de pobreza multidimencional ","se muestra el porcentaje y número de personas en situación de pobreza, vulnerable por carencias sociales, vulnerable por ingresos","Eficacia","Gestión","porcentaje las familias  no atendidas que viven en pobreza extrema",2000,2500,"Bimestral","porcentaje",1400,"Consejo Nacional de Evaluacion de la Politica de Desarrollo Social","senso de inegi 2010"]
[null,null,null,null,null,null,null,null,null,null,null,null,null,null,"Propósito",null,"Lograr una mejor calidad de vida para todos las familias que viven en pobreza extrema","promover incorporaciones  de familias ","Promover antes la dependencia gubernamental indicada para la atencion de incorporaciones de familias que necesitan y cumplen con el criterio del programa","Eficacia","Gestión"," porcentaje el numero de familias sin atender ",1000,2000,"Bimestral","porcentaje",1000,"Consejo Nacional de Evaluacion de la Politica de Desarrollo Social","senso de inegi 2010"]
[null,null,null,null,null,null,null,null,null,null,null,null,null,null,"Componente 1",null,"Atencion de familias beneficiarias ","calidad de atencion personalizada","atencion de calidad y buen trato","Eficiencia","Gestión","cantidad de familias que se atienden",600,800,"Bimestral","numero",1200,"Consejo Nacional de Evaluacion de la Politica de Desarrollo Social","se entregan en tiempo su apoyo de manera bimestral",null,2500]
[null,null,null,null,null,null,null,null,null,null,null,null,null,null,"Actividad 1.1",null,"Mesa de atencion para las beneficiarias ","Atencion Personalizada ","se atiende de forma personalizada referente a la informacion y tramites de su nucleo familiar ","Eficiencia","Gestión","la cantidad de atenciones y tramites que se realiza anulmente",6,6,"Bimestral","numero",6,"Consejo Nacional de Evaluacion de la Politica de Desarrollo Social","se atiende de manera bimestral "]
[null,null,null,null,null,null,null,null,null,null,null,null,null,null,"Actividad 1.2",null,"capacitacion de vocales ","reuniones de capacitaciones para las mac (mesa de atencion de Comites de Colonias y Localidades","se capacita a los comites sobre la informacion que corresponde al programa para que a su vez ellas puedan orientas a las demas beneficiarias","Eficiencia","Gestión","la cantidad de atenciones y tramites que se realiza anulmente",6,6,"Bimestral","numero",6,"Consejo Nacional de Evaluacion de la Politica de Desarrollo Social","se atiende de manera bimestral "]

{"sheet":"MIR1","index":5,"n_rows":23,"n_cols":26,"rows_kept":23,"cut":false,"hidden":false,"merged":[[13,1,14,1],[13,2,13,3],[14,2,14,3],[16,4,16,16],[16,17,16,25],[8,2,8,3],[9,1,10,1],[9,2,9,3],[10,2,10,3],[11,1,12,1],[11,2,11,3],[12,2,12,3],[7,2,7,3],[2,2,2,3],[3,2,3,3],[4,2,4,3],[5,2,5,3],[6,2,6,3]]}
[]
[null,null,null,null,null,null,null,null,null,null,null,"  MATRIZ DE INDICADORES PARA RESULTADOS POR PROGRAMA "]
[null,null,"Municipio",null,"Etzatlán"]
[null,null,"Denominación del Programa",null,"Pension del Adulto Mayor"]
[null,null,"Categoría programática",null,"Subsidios sujetos a reglas de operación"]
[null,null,"Unidad Responsable/OPD",null,"Secretaria de Desarrollo Social "]
[null,null,"Finalidad",null,"Desarrollo_Social"]
[null,null,"Función",null,"Protección_Social"]
[null,null,"Sub-función",null,"2.6.2 Edad Avanzada"]
[null,"Plan Nacional de Desarrollo","Alineación con objetivos superiores del PND",null,"México_Incluyente"]
[null,null,"Alineación con objetivos secundarios del PND",null,"2.2. Transitar hacia una sociedad equitativa e incluyente"]
[null,"Plan Estatal de Desarrollo","Alineación con objetivos superiores del PED",null,"O12_Reducir_la_pobreza_y_la_desigualdad"]
[null,null,"Alineación con objetivos secundarios del PED",null,"O12E1 Ampliar las capacidades productivas de la población en condiciones de vulnerabilidad"]
[null,"Plan Municipal de Desarrollo","Alineación con objetivos superiores del PMD",null,"Atender a las personas Adultas Mayores de 68 años en adelante "]
[null,null,"Alineación con objetivos secundarios del PMD",null,"Promover y conservar la salud y el bienestar social fin de mejorar su calidad de vida"]
[]
[null,null,null,null,"I N D I C A D O R E S",null,null,null,null,null,null,null,null,null,null,null,null,"P R E S U P U E S T O"]
[null,null,null,null,"Resumen Narrativo","Nombre del indicador","Definición","Dimensión","Tipo","Método de cálculo","Valor programado 1 (Numerador)","Valor programado 2 (Denominador)","Frecuencia de medición","Unidad de medida","Metas","Medios de verificación","Supuestos","Capítulo 1000","Capítulo 2000","Capítulo 3000","Capítulo 4000","Capítulo 5000","Capítulo 6000","Capítulo 7000","Capítulo 8000","Capítulo 9000"]
[null,null,"Fin",null,"Lograr que el sector Adulto Mayor de población tenga una mejor calidad de vida y se beneficie económicamente para que pueda incrementar su salud, su desarrollo social, tu estado de ánimo y productividad.","Poblacion de adultos mayores","se muestra el porcentaje y número de adultos mayores  en  edad  de ingresar al programa","Eficacia","Gestión","Mejoramiento de la situacion en promedio de los adultos atendidos",1800,2000,"Anual","porcentaje",1400,"Consejo Nacional de Evaluacion de la Politica de Desarrollo Social","senso de inegi 2010"]
[null,null,"Propósito",null," Se beneficie económicamente para que pueda incrementar su salud, su desarrollo social, tu estado de ánimo y productividad.","Promover incorporaciones  de adultos al programa","Promover antes la dependencia gubernamental indicada para la atencion de incorporaciones de adultos mayores que necesitan y cumplen con el criterio del programa","Eficacia","Gestión","porcentaje de adultos mayores  no atendidos ",3000,3250,"Anual","porcentaje",1000,"Consejo Nacional de Evaluacion de la Politica de Desarrollo Social","senso de inegi 2010"]
[null,null,"Componente 1",null,"Entrega del apoyo economico a los adultos beneficiados","Calidad de atencion personalizada","atencion de calidad y buen trato","Eficiencia","Gestión","cantidad de recurso economicos entregados",12528000,25000000,"Bimestral","numero",1200,"Consejo Nacional de Evaluacion de la Politica de Desarrollo Social","se entregan en tiempo su apoyo de manera bimestral",null,2000]
[null,null,"Actividad 1.1",null,"Convocatoria ","Difusion","se lleva a cabo la difusion por las diferentes calles del municipio  y aviso a los delegados ","Eficiencia","Gestión","la cantidad de atenciones y tramites que se realiza anulmente",1800,2500,"Bimestral","numero",6,"Consejo Nacional de Evaluacion de la Politica de Desarrollo Social","se atiende de manera bimestral "]
[null,null,"Actividad 1.2",null,"Logistica del evento","Espacio adecuado para su atencion","atiende de forma personalizada referente a la informacion y tramites referente al programa","Eficiencia","Gestión","la cantidad de atenciones y tramites que se realiza anulmente",1800,2500,"Bimestral","numero",6,"Consejo Nacional de Evaluacion de la Politica de Desarrollo Social","se atiende de manera bimestral "]

{"sheet":"MIR2","index":6,"n_rows":23,"n_cols":26,"rows_kept":23,"cut":false,"hidden":false,"merged":[[13,1,14,1],[13,2,13,3],[14,2,14,3],[16,4,16,16],[16,17,16,25],[8,2,8,3],[9,1,10,1],[9,2,9,3],[10,2,10,3],[11,1,12,1],[11,2,11,3],[12,2,12,3],[7,2,7,3],[2,2,2,3],[3,2,3,3],[4,2,4,3],[5,2,5,3],[6,2,6,3]]}
[]
[null,null,null,null,null,null,null,null,null,null,null,"  MATRIZ DE INDICADORES PARA RESULTADOS POR PROGRAMA "]
[null,null,"Municipio",null,"Etzatlán"]
[null,null,"Denominación del Programa",null,"Apoyo a mujeres jefas de familias"]
[null,null,"Categoría programática",null,"Subsidios sujetos a reglas de operación"]
[null,null,"Unidad Responsable/OPD",null,"Secretaria de Desarrollo e Integracion Social"]
[null,null,"Finalidad",null,"Desarrollo_Social"]
[null,null,"Función",null,"Protección_Social"]
[null,null,"Sub-función",null,"2.6.8 Otros Grupos Vulnerables"]
[null,"Plan Nacional de Desarrollo","Alineación con objetivos superiores del PND",null,"México_Incluyente"]
[null,null,"Alineación con objetivos secundarios del PND",null,"2.2. Transitar hacia una sociedad equitativa e incluyente"]
[null,"Plan Estatal de Desarrollo","Alineación con objetivos superiores del PED",null,"O26_Mejorar_la_igualdad_entre_los_géneros_y_empoderar_a_las_mujeres"]
[null,null,"Alineación con objetivos secundarios del PED",null,"O26E6 Reducir la violencia contra las mujeres"]
[null,"Plan Municipal de Desarrollo","Alineación con objetivos superiores del PMD",null,"Auxiliar a reducir la pobreza y fortalecer la integración social  económica."]
[null,null,"Alineación con objetivos secundarios del PMD",null,"Promover la igualdad entre hombres y mujeres combatiendo toda forma de discriminación "]
[]
[null,null,null,null,"I N D I C A D O R E S",null,null,null,null,null,null,null,null,null,null,null,null,"P R E S U P U E S T O"]
[null,null,null,null,"Resumen Narrativo","Nombre del indicador","Definición","Dimensión","Tipo","Método de cálculo","Valor programado 1 (Numerador)","Valor programado 2 (Denominador)","Frecuencia de medición","Unidad de medida","Metas","Medios de verificación","Supuestos","Capítulo 1000","Capítulo 2000","Capítulo 3000","Capítulo 4000","Capítulo 5000","Capítulo 6000","Capítulo 7000","Capítulo 8000","Capítulo 9000"]
[null,null,"Fin",null,"Obtener la reducción de pobreza y el fortalecimiento económico de las madres de familia en escasos recursos. ","Mujeres en situacion de pobreza extrema ","se muestra el porcentaje  de Jefas de familias en situación de pobreza, vulnerable por carencias sociales, vulnerable por ingresos","Eficacia","Gestión","porcentaje las familias  no atendidas que viven en pobreza extrema",250,300,"Anual","porcentaje",300,"Consejo Nacional de Evaluacion de la Politica de Desarrollo Social","senso de inegi 2010"]
[null,null,"Propósito",null,"Conseguir la igualdad y equidad de género de mujeres, erradicando así todo tipo de discriminación en la población","identificar a jefas de familias que cumplen con los criterios del programa","Promover antes la dependencia gubernamental indicada para la atencion de incorporaciones de Jefas de familia que necesitan y cumplen con el criterio del programa","Eficacia","Gestión"," porcentaje el numero de familias sin atender ",40,50,"Anual","porcentaje",300,"Consejo Nacional de Evaluacion de la Politica de Desarrollo Social","senso de inegi 2010"]
[null,null,"Componente 1",null,"Reunion de Jefas de familias","calidad de atencion personalizada","atencion de calidad y buen trato","Eficiencia","Gestión","cantidad de familias que se atienden",40,40,"Semestral","numero",300,"Consejo Nacional de Evaluacion de la Politica de Desarrollo Social","se entregan en tiempo su apoyo de manera mensual",null,1200]
[null,null,"Actividad 1.1",null,"Convocatorias","Atencion Personalizada ","se atiende de forma personalizada referente a la informacion y tramites de su nucleo familiar ","Eficiencia","Gestión","la cantidad de atenciones y tramites que se realiza anulmente",40,40,"Mensual","numero",300,"Consejo Nacional de Evaluacion de la Politica de Desarrollo Social","se atiende de manera semestral"]
[null,null,"Actividad 1.2",null,"validacion de jefas de familias","entrega de documentacion ","se valida que las jefas sigan en solteria y tenga hijos aun estudiando","Eficiencia","Gestión","la cantidad de atenciones y tramites que se realiza anulmente",40,40,"Mensual","numero",300,"Consejo Nacional de Evaluacion de la Politica de Desarrollo Social","se atiende manera semestral"]

{"sheet":"MIR3","index":7,"n_rows":23,"n_cols":26,"rows_kept":23,"cut":false,"hidden":false,"merged":[[13,1,14,1],[13,2,13,3],[14,2,14,3],[16,4,16,16],[16,17,16,25],[8,2,8,3],[9,1,10,1],[9,2,9,3],[10,2,10,3],[11,1,12,1],[11,2,11,3],[12,2,12,3],[7,2,7,3],[2,2,2,3],[3,2,3,3],[4,2,4,3],[5,2,5,3],[6,2,6,3]]}
[]
[null,null,null,null,null,null,null,null,null,null,null,"  MATRIZ DE INDICADORES PARA RESULTADOS POR PROGRAMA "]
[null,null,"Municipio",null,"Etzatlán"]
[null,null,"Denominación del Programa",null,"Jalisco Incluyente  ver y escuchar"]
[null,null,"Categoría programática",null,"Subsidios sujetos a reglas de operación"]
[null,null,"Unidad Responsable/OPD",null,"Secretaria de Desarrollo e Integracion Social"]
[null,null,"Finalidad",null,"Desarrollo_Social"]
[null,null,"Función",null,"Protección_Social"]
[null,null,"Sub-función",null,"2.6.1 Enfermedad e Incapacidad"]
[null,"Plan Nacional de Desarrollo","Alineación con objetivos superiores del PND",null,"México_Incluyente"]
[null,null,"Alineación con objetivos secundarios del PND",null,"2.2. Transitar hacia una sociedad equitativa e incluyente"]
[null,"Plan Estatal de Desarrollo","Alineación con objetivos superiores del PED",null,"O12_Reducir_la_pobreza_y_la_desigualdad"]
[null,null,"Alineación con objetivos secundarios del PED",null,"O12E1 Ampliar las capacidades productivas de la población en condiciones de vulnerabilidad"]
[null,"Plan Municipal de Desarrollo","Alineación con objetivos superiores del PMD",null,"Contribuir a mejorar las condiciones de vida e inclusión social de las personas con discapacidad."]
[null,null,"Alineación con objetivos secundarios del PMD",null,"Contribuir a mejorar la calidad de vida de los hogares con personas con discapacidad severa permanente al disminuir las desventajas económicas"]
[]
[null,null,null,null,"I N D I C A D O R E S",null,null,null,null,null,null,null,null,null,null,null,null,"P R E S U P U E S T O"]
[null,null,null,null,"Resumen Narrativo","Nombre del indicador","Definición","Dimensión","Tipo","Método de cálculo","Valor programado 1 (Numerador)","Valor programado 2 (Denominador)","Frecuencia de medición","Unidad de medida","Metas","Medios de verificación","Supuestos","Capítulo 1000","Capítulo 2000","Capítulo 3000","Capítulo 4000","Capítulo 5000","Capítulo 6000","Capítulo 7000","Capítulo 8000","Capítulo 9000"]
[null,null,"Fin",null,"Promover la incorporación social y el desarrollo de las personas con discapacidades auditivas, y que se encontraran en grado severo y permanente de disponibilidad de recursos económicos","Porcentaje  de poblacion con discapacidad en situacion de pobreza","Consiste en un apoyo con auxiliares auditivos y apoyo economicopara personas que presentan discapacidad permanente.","Eficacia","Gestión","porcentaje de personas con discapacidad  no atendidas que viven en pobreza extrema",450,500,"Anual","Porcentaje",200,"Consejo Nacional de Evaluacion de la Politica de Desarrollo Social","senso de inegi 2010"]
[null,null,"Propósito",null,"Atencion plena de las personas con alguna discapacidad ","Numero de personas beneficiarias en la modalidad de apoyos economicos y especie","sumatoria de personas con discapacidad permanente beneficiadas en especie y monetario","Eficacia","Gestión","numero de personas con discapacidad que se atienden",100,150,"Anual","numero",150,"Consejo Nacional de Evaluacion de la Politica de Desarrollo Social","senso de inegi 2010"]
[null,null,"Componente 1",null,"Entrega de recursos a las personas beneficiadas con discapacidades diferentes","Atencion de calidad y buen trato","Sumatorias de personas con discapacidad en la modalidad de apoyos economicos y modalidad de aparatos auditivos","Eficiencia","Gestión","cantidad de personas con discapacidad que reciben apoyo economico",15,25,"Anual","numero",25,"Consejo Nacional de Evaluacion de la Politica de Desarrollo Social","se entregan en tiempo su apoyo de manera mensual",null,2000]
[null,null,"Actividad 1.1",null,"Convocatorias","Atencion Personalizada ","Se atiende de forma personalizada referente a la informacion que se proporciona","Eficiencia","Gestión","la cantidad de atenciones y tramites que se realiza anulmente",2,3,"Semestral","numero",3,"Consejo Nacional de Evaluacion de la Politica de Desarrollo Social","se atiende de manera semestral"]
[null,null,"Actividad 1.2",null,"Validacion de documentos","Entrega de Documentacion ","Se valida el tipo de discapacidad que presenta en el ceriticado medico","Eficiencia","Gestión","la cantidad de atenciones y tramites que se realiza anulmente",2,3,"Semestral","numero",3,"Consejo Nacional de Evaluacion de la Politica de Desarrollo Social","se atiende manera semestral"]

{"sheet":"MIR4","index":8,"n_rows":23,"n_cols":26,"rows_kept":23,"cut":false,"hidden":false,"merged":[[13,1,14,1],[13,2,13,3],[14,2,14,3],[16,4,16,16],[16,17,16,25],[8,2,8,3],[9,1,10,1],[9,2,9,3],[10,2,10,3],[11,1,12,1],[11,2,11,3],[12,2,12,3],[7,2,7,3],[2,2,2,3],[3,2,3,3],[4,2,4,3],[5,2,5,3],[6,2,6,3]]}
[]
[null,null,null,null,null,null,null,null,null,null,null,"  MATRIZ DE INDICADORES PARA RESULTADOS POR PROGRAMA "]
[null,null,"Municipio",null,"Etzatlán"]
[null,null,"Denominación del Programa",null,"Seguridad Alimentaria comedor de Santa rosalia"]
[null,null,"Categoría programática",null,"Subsidios sujetos a reglas de operación"]
[null,null,"Unidad Responsable/OPD",null,"Secretaria de Desarrollo e Integracion Social"]
[null,null,"Finalidad",null,"Desarrollo_Social"]
[null,null,"Función",null,"Protección_Social"]
[null,null,"Sub-función",null,"2.6.5 Alimentación y Nutrición"]
[null,"Plan Nacional de Desarrollo","Alineación con objetivos superiores del PND",null,"México_Incluyente"]
[null,null,"Alineación con objetivos secundarios del PND",null,"2.2. Transitar hacia una sociedad equitativa e incluyente"]
[null,"Plan Estatal de Desarrollo","Alineación con objetivos superiores del PED",null,"O12_Reducir_la_pobreza_y_la_desigualdad"]
[null,null,"Alineación con objetivos secundarios del PED",null,"O12E6 Reducir el rezago educativo"]
[null,"Plan Municipal de Desarrollo","Alineación con objetivos superiores del PMD",null,"Seguir mejorando las situacion nutricional de los niños, adolecentes mujeres en gestacion, lactantes, personas con alguna discapacidad y adultos mayores "]
[null,null,"Alineación con objetivos secundarios del PMD",null,"Mejorar la Seguiridad alimentaria de la poblacion "]
[]
[null,null,null,null,"I N D I C A D O R E S",null,null,null,null,null,null,null,null,null,null,null,null,"P R E S U P U E S T O"]
[null,null,null,null,"Resumen Narrativo","Nombre del indicador","Definición","Dimensión","Tipo","Método de cálculo","Valor programado 1 (Numerador)","Valor programado 2 (Denominador)","Frecuencia de medición","Unidad de medida","Metas","Medios de verificación","Supuestos","Capítulo 1000","Capítulo 2000","Capítulo 3000","Capítulo 4000","Capítulo 5000","Capítulo 6000","Capítulo 7000","Capítulo 8000","Capítulo 9000"]
[null,null,"Fin",null,"Contribuir a mejorar la salud y nutricion de la poblacion que no tiene un ingreso estable o  un ingreso por debajo de la linea de bienestar ","El porcentaje de la población que vive en condiciones de pobreza alimentaria y en condiciones de pobreza patrimonial","Es el indicador de gestion que mide la eficacia de la entrega de las porciones nutritivas.","Eficacia","Estratégico","Total de la poblacion en condiciones de pobreza alimentaria",3110,3110,"Anual","porcentaje",3110,"Consejo Nacional de Evaluacion de la Politica de Desarrollo Social","senso de inegi 2010"]
[null,null,"Propósito",null,"se apoya a los beneficiarios con el programa con una porcion al dia por lo que se pretende mejorar el servicio con otra porcion de comida al dia ","cantidad de porciones que se atienden al en los comedores asistenciales ","Mide la cantidad de porciones que se benefician al dia ","Eficacia","Gestión","cantidad de personas beneficiadas que reciben el beneficio ",50,60,"Mensual","numero ",100,"Consejo Nacional de Evaluacion de la Politica de Desarrollo Social","senso de inegi 2010"]
[null,null,"Componente 1",null,"Abastecimiento de alimentos perecederos","porcentaje de porciones entregadas por el programa de comedores asistenciales","Es indicador que mide la eficacia de los productos para entregar a los comedores los insumos necesarios para la elaboracion de los platillos nutriticos","Calidad","Gestión","Total de porciones entregadas inscritas al programa ",1000,1200,"Mensual","porcentaje",2000,"Consejo Nacional de Evaluacion de la Politica de Desarrollo Social","se entregan en tiempo su apoyo de manera mensual",null,3500,1500]
[null,null,"Actividad 1.1",null,"Selección de productos para el abastecimiento de los comedores comunitarios","Porcentaje de poblacion con ingresos por debajo de su bienestar nutrcional , con un levantamiento de informacion socioeconomica","Es indicador que mide el costo de los productos que abastecen los Comedores Comunitarios","Economía","Gestión","Costo Total de los Prioductos seleccionados para abastecer los comedores comunitarios ",10000,12000,"Mensual","porcentaje",24000,"Consejo Nacional de Evaluacion de la Politica de Desarrollo Social","se atiende de manera semestral"]
[null,null,"Actividad 1.2",null,"Selección de Beneficiarios mediante captura de estudios socioeconomicos  ","Porcentaje de posibles beneficiarios que se pudieran atender en el Comedor","Mide la capacidad de atencion de posibles beneficiarios del programa ","Eficiencia","Gestión","Total de posibles beneficiarios que pudieran atender por programa",40,100,"Mensual","numero ",24000,"Consejo Nacional de Evaluacion de la Politica de Desarrollo Social","se atienden diario "]

{"sheet":"MIR5","index":9,"n_rows":23,"n_cols":26,"rows_kept":23,"cut":false,"hidden":false,"merged":[[13,1,14,1],[13,2,13,3],[14,2,14,3],[16,4,16,16],[16,17,16,25],[8,2,8,3],[9,1,10,1],[9,2,9,3],[10,2,10,3],[11,1,12,1],[11,2,11,3],[12,2,12,3],[7,2,7,3],[2,2,2,3],[3,2,3,3],[4,2,4,3],[5,2,5,3],[6,2,6,3]]}
[]
[null,null,null,null,null,null,null,null,null,null,null,"  MATRIZ DE INDICADORES PARA RESULTADOS POR PROGRAMA "]
[null,null,"Municipio",null,"Etzatlán"]
[null,null,"Denominación del Programa"]
[null,null,"Categoría programática"]
[null,null,"Unidad Responsable/OPD"]
[null,null,"Finalidad"]
[null,null,"Función"]
[null,null,"Sub-función"]
[null,"Plan Nacional de Desarrollo","Alineación con objetivos superiores del PND"]
[null,null,"Alineación con objetivos secundarios del PND"]
[null,"Plan Estatal de Desarrollo","Alineación con objetivos superiores del PED"]
[null,null,"Alineación con objetivos secundarios del PED"]
[null,"Plan Municipal de Desarrollo","Alineación con objetivos superiores del PMD",null,"Seguir mejorando las situacion nutricional de los niños, adolecentes mujeres en gestacion, lactantes, personas con alguna discapacidad y adultos mayores "]
[null,null,"Alineación con objetivos secundarios del PMD",null,"Mejorar la Seguiridad alimentaria de la poblacion "]
[]
[null,null,null,null,"I N D I C A D O R E S",null,null,null,null,null,null,null,null,null,null,null,null,"P R E S U P U E S T O"]
[null,null,null,null,"Resumen Narrativo","Nombre del indicador","Definición","Dimensión","Tipo","Método de cálculo","Valor programado 1 (Numerador)","Valor programado 2 (Denominador)","Frecuencia de medición","Unidad de medida","Metas","Medios de verificación","Supuestos","Capítulo 1000","Capítulo 2000","Capítulo 3000","Capítulo 4000","Capítulo 5000","Capítulo 6000","Capítulo 7000","Capítulo 8000","Capítulo 9000"]
[null,null,"FIN",null,"Contribuir a mejorar la salud y nutricion de la poblacion que no tiene un ingreso estable o  un ingreso por debajo de la linea de bienestar ","El porcentaje de la población que vive en condiciones de pobreza alimentaria y en condiciones de pobreza patrimonial","Es el indicador de gestion que mide la eficacia de la entrega de las porciones nutritivas.","Eficacia","Estratégico","Total de la poblacion en condiciones de pobreza alimentaria",3110,3110,"Anual","porcentaje",3110,"Consejo Nacional de Evaluacion de la Politica de Desarrollo Social","senso de inegi 2010"]
[null,null,"PROPOSITO",null,"se apoya a los beneficiarios con el programa con una porcion al dia por lo que se pretende mejorar el servicio con otra porcion de comida al dia ","cantidad de porciones que se atienden al en los comedores asistenciales ","Mide la cantidad de porciones que se benefician al dia ","Eficacia","Gestión","cantidad de personas beneficiadas que reciben el beneficio ",50,60,"Mensual","numero ",100,"Consejo Nacional de Evaluacion de la Politica de Desarrollo Social","senso de inegi 2010"]
[null,null,"COMPONENTE",null,"Abastecimiento de alimentos perecederos","porcentaje de porciones entregadas por el programa de comedores asistenciales","Es indicador que mide la eficacia de los productos para entregar a los comedores los insumos necesarios para la elaboracion de los platillos nutriticos","Calidad","Gestión","Total de porciones entregadas inscritas al programa ",1000,1200,"Mensual","porcentaje",2000,"Consejo Nacional de Evaluacion de la Politica de Desarrollo Social","se entregan en tiempo su apoyo de manera mensual",null,3500,1500]
[null,null,"ACTIVIDAD 1",null,"Selección de productos para el abastecimiento de los comedores comunitarios","Porcentaje de poblacion con ingresos por debajo de su bienestar nutrcional , con un levantamiento de informacion socioeconomica","Es indicador que mide el costo de los productos que abastecen los Comedores Comunitarios","Economía","Gestión","Costo Total de los Prioductos seleccionados para abastecer los comedores comunitarios ",10000,12000,"Mensual","porcentaje",24000,"Consejo Nacional de Evaluacion de la Politica de Desarrollo Social","se atiende de manera semestral"]
[null,null,"ACTIVIDAD 2",null,"Selección de Beneficiarios mediante captura de estudios socioeconomicos  ","Porcentaje de posibles beneficiarios que se pudieran atender en el Comedor","Mide la capacidad de atencion de posibles beneficiarios del programa ","Eficiencia","Gestión","Total de posibles beneficiarios que pudieran atender por programa",40,100,"Mensual","numero ",24000,"Consejo Nacional de Evaluacion de la Politica de Desarrollo Social","se atienden diario "]